fUSD/lending_fUSD_20250219
["ID","MTS","AMOUNT","RATE_DAILY","PERIOD"]
[353668957,1739986980677,-504.31995257,0.00011041,2]
[353668958,1739986980700,-971.03,0.00011041,2]
[353668959,1739986980724,-1812.51,0.00011041,2]
[353668960,1739986980747,-2485.02,0.00011041,2]
[353668961,1739986980769,-614.96884857,0.00011041,2]
[353668962,1739986980791,-500.0,0.00011041,2]
[353668963,1739986980813,-1358.04,0.00011041,2]
[353668964,1739986980834,-669.81,0.00011041,2]
[353668965,1739986980855,-500.0,0.00011041,2]
[353668966,1739986980877,-500.0,0.00011041,2]
[353668967,1739986980903,-1305.34,0.00011041,2]
[353668968,1739986980924,-500.0,0.00011041,2]
[353668969,1739986980947,-500.0,0.00011041,2]
[353668970,1739986980970,-515.30548674,0.00011041,2]
[353668971,1739986980991,-441.68913507,0.00011041,2]
[353668972,1739986981013,-500.0,0.00011041,2]
[353668973,1739986981035,-500.0,0.00011041,2]
[353668974,1739986981056,-500.0,0.00011041,2]
[353668975,1739986981077,-839.5,0.00011041,2]
[353668976,1739986981336,-1932.99,0.00011041,2]
[353668977,1739986981360,-819.06,0.00011041,2]
[353668978,1739986981382,-500.0,0.00011041,2]
[353668979,1739986981405,-1333.44,0.00011041,2]
[353668980,1739986981427,-500.0,0.00011041,2]
[353668981,1739986981449,-1280.1,0.00011041,2]
[353668982,1739986981473,-1821.57,0.00011041,2]
[353668983,1739986981495,-500.0,0.00011041,2]
[353668984,1739986981517,-914.85,0.00011041,2]
[353668985,1739986981538,-560.88,0.00011041,2]
[353668986,1739986981560,-500.0,0.00011041,2]
[353668987,1739986981581,-1471.53,0.00011041,2]
[353668988,1739986981603,-500.0,0.00011041,2]
[353668989,1739986981625,-1236.47,0.00011041,2]
[353668990,1739986981647,-2253.67,0.00011041,2]
[353668991,1739986981669,-1865.24,0.00011041,2]
[353668992,1739986981691,-1003.93,0.00011041,2]
[353668993,1739986981713,-618.28,0.00011041,2]
[353668994,1739986981734,-748.0,0.00011041,2]
[353668995,1739986981756,-725.12,0.00011041,2]
[353668996,1739986981778,-500.0,0.00011041,2]
[353668997,1739986981799,-500.0,0.00011041,2]
[353668998,1739986981821,-529.79,0.00011041,2]
[353668999,1739986981847,-2082.83,0.00011041,2]
[353669000,1739986981869,-500.0,0.00011041,2]
[353669001,1739986981895,-500.0,0.00011041,2]
[353669002,1739986981919,-500.0,0.00011041,2]
[353669003,1739986981946,-500.0,0.00011041,2]
[353669004,1739986981969,-944.46,0.00011041,2]
[353669005,1739986981991,-2152.29,0.00011041,2]
[353669006,1739986982014,-1524.59,0.00011041,2]
[353669007,1739986982036,-511.29042135,0.00011041,2]
[353669008,1739986982058,-681.33,0.00011041,2]
[353669009,1739986982081,-642.47,0.00011041,2]
[353669010,1739986982105,-500.0,0.00011041,2]
[353669011,1739986982135,-1070.85,0.00011041,2]
[353669012,1739986982158,-500.0,0.00011041,2]
[353669013,1739986982181,-609.31,0.00011041,2]
[353669014,1739986982205,-500.0,0.00011041,2]
[353669015,1739986982228,-500.0,0.00011041,2]
[353669016,1739986982250,-1651.7,0.00011041,2]
[353669017,1739986982272,-1309.23,0.00011041,2]
[353669018,1739986982294,-616.66,0.00011041,2]
[353669019,1739986982316,-632.87,0.00011041,2]
[353669020,1739986982339,-500.0,0.00011041,2]
[353669021,1739986982362,-500.0,0.00011041,2]
[353669022,1739986982384,-1552.62,0.00011041,2]
[353669023,1739986982407,-1776.39,0.00011041,2]
[353669024,1739986982429,-500.0,0.00011041,2]
[353669025,1739986982451,-856.54,0.00011041,2]
[353669026,1739986982473,-809.31,0.00011041,2]
[353669027,1739986982496,-1842.68,0.00011041,2]
[353669028,1739986982518,-500.0,0.00011041,2]
[353669029,1739986982539,-500.0,0.00011041,2]
[353669030,1739986982562,-886.63,0.00011041,2]
[353669031,1739986982586,-1658.86,0.00011041,2]
[353669032,1739986982609,-1962.68,0.00011041,2]
[353669033,1739986982631,-500.0,0.00011041,2]
[353669034,1739986982653,-807.37,0.00011041,2]
[353669035,1739986982675,-806.59,0.00011041,2]
[353669036,1739986982697,-500.0,0.00011041,2]
[353669037,1739986982720,-500.0,0.00011041,2]
[353669038,1739986982742,-500.0,0.00011041,2]
[353669039,1739986982764,-500.0,0.00011041,2]
[353669040,1739986982786,-570.48,0.00011041,2]
[353669041,1739986982808,-1658.32,0.00011041,2]
[353669042,1739986982831,-1296.83,0.00011041,2]
[353669043,1739986982853,-1882.15,0.00011041,2]
[353669044,1739986982875,-580.16919119,0.00011041,2]
[353669045,1739986982899,-500.0,0.00011041,2]
[353669046,1739986982922,-939.3,0.00011041,2]
[353669047,1739986982945,-857.33,0.00011041,2]
[353669048,1739986982967,-500.0,0.00011041,2]
[353669049,1739986982992,-500.0,0.00011041,2]
[353669050,1739986983014,-500.0,0.00011041,2]
[353669051,1739986983041,-1418.8,0.00011041,2]
[353669052,1739986983065,-500.0,0.00011041,2]
[353669053,1739986983090,-500.0,0.00011041,2]
[353669054,1739986983115,-2632.01,0.00011041,2]
[353669055,1739986983139,-500.0,0.00011041,2]
[353669056,1739986983164,-500.0,0.00011041,2]
[353669057,1739986983189,-1411.22,0.00011041,2]
[353669058,1739986983216,-690.83,0.00011041,2]
[353669059,1739986983240,-500.0,0.00011041,2]
[353669060,1739986983264,-2069.19,0.00011041,2]
[353669061,1739986983287,-579.69865365,0.00011041,2]
[353669062,1739986983311,-1670.81,0.00011041,2]
[353669063,1739986983334,-769.82,0.00011041,2]
[353669064,1739986983357,-867.41,0.00011041,2]
[353669065,1739986983380,-500.0,0.00011041,2]
[353669066,1739986983404,-1765.3,0.00011041,2]
[353669067,1739986983429,-500.0,0.00011041,2]
[353669068,1739986983453,-1370.86,0.00011041,2]
[353669069,1739986983477,-500.0,0.00011041,2]
[353669070,1739986983501,-1531.76,0.00011041,2]
[353669071,1739986983524,-500.0,0.00011041,2]
[353669072,1739986983547,-662.65,0.00011041,2]
[353669073,1739986983570,-633.19,0.00011041,2]
[353669074,1739986983593,-1131.87,0.00011041,2]
[353669075,1739986983616,-500.0,0.00011041,2]
[353669076,1739986983639,-578.38,0.00011041,2]
[353669077,1739986983662,-500.0,0.00011041,2]
[353669078,1739986983685,-1857.05,0.00011041,2]
[353669079,1739986983708,-500.0,0.00011041,2]
[353669080,1739986983732,-500.0,0.00011041,2]
[353669081,1739986983757,-2518.5,0.00011041,2]
[353669082,1739986983780,-500.0,0.00011041,2]
[353669083,1739986983803,-840.45,0.00011041,2]
[353669084,1739986983826,-500.0,0.00011041,2]
[353669085,1739986983850,-3303.06,0.00011041,2]
[353669086,1739986983873,-901.36,0.00011041,2]
[353669087,1739986983900,-1610.13,0.00011041,2]
[353669088,1739986983924,-500.0,0.00011041,2]
[353669089,1739986983948,-589.07,0.00011041,2]
[353669090,1739986983972,-1567.58,0.00011041,2]
[353669091,1739986983995,-500.0,0.00011041,2]
[353669092,1739986984019,-1832.34,0.00011041,2]
[353669093,1739986984045,-5677.91,0.00011041,2]
[353669094,1739986984068,-500.0,0.00011041,2]
[353669095,1739986984092,-500.0,0.00011041,2]
[353669096,1739986984117,-501.99635662,0.00011041,2]
[353669097,1739986984141,-500.0,0.00011041,2]
[353669098,1739986984165,-845.34,0.00011041,2]
[353669099,1739986984190,-1957.19,0.00011041,2]
[353669100,1739986984217,-573.91,0.00011041,2]
[353669101,1739986984241,-504.11,0.00011041,2]
[353669102,1739986984263,-535.78,0.00011041,2]
[353669103,1739986984286,-850.34,0.00011041,2]
[353669104,1739986984310,-1048.17,0.00011041,2]
[353669105,1739986984331,-767.34,0.00011041,2]
[353669106,1739986984354,-563.62,0.00011041,2]
[353669107,1739986984377,-1123.94,0.00011041,2]
[353669108,1739986984400,-1091.09,0.00011041,2]
[353669109,1739986984424,-556.32,0.00011041,2]
[353669110,1739986984446,-500.0,0.00011041,2]
[353669111,1739986984469,-559.81238518,0.00011041,2]
[353669112,1739986984492,-2302.95,0.00011041,2]
[353669113,1739986984516,-500.0,0.00011041,2]
[353669114,1739986984540,-1864.63,0.00011041,2]
[353669115,1739986984562,-500.0,0.00011041,2]
[353669116,1739986984585,-500.0,0.00011041,2]
[353669117,1739986984606,-500.0,0.00011041,2]
[353669118,1739986984629,-942.36,0.00011122,2]
[353669119,1739986984652,-1523.74,0.00011122,2]
[353669120,1739986984675,-500.0,0.00011122,2]
[353669121,1739986984698,-1080.37,0.00011122,2]
[353669122,1739986984720,-1322.6,0.00011122,2]
[353669123,1739986984743,-2479.24,0.00011122,2]
[353669124,1739986984767,-1394.1,0.00011122,2]
[353669125,1739986984985,-1738.23,0.00011122,2]
[353669126,1739986985009,-7587.82,0.00011122,2]
[353669127,1739986985033,-1182.97,0.00011122,2]
[353669128,1739986985059,-843.47,0.00011122,2]
[353669129,1739986985084,-1544.29,0.00011122,2]
[353669130,1739986985110,-1833.33,0.00011122,2]
[353669131,1739986985133,-1519.95,0.00011122,2]
[353669132,1739986985156,-504.22330116,0.00011122,2]
[353669133,1739986985179,-500.0,0.00011122,2]
[353669134,1739986985204,-500.0,0.00011122,2]
[353669135,1739986985229,-500.0,0.00011122,2]
[353669136,1739986985253,-500.0,0.00011122,2]
[353669137,1739986985276,-620.14162512,0.00011122,2]
[353669138,1739986985299,-500.0,0.00011122,2]
[353669139,1739986985321,-500.0,0.00011122,2]
[353669140,1739986985344,-500.0,0.00011122,2]
[353669141,1739986985367,-474.01676032,0.00011122,2]
[353669142,1739986985393,-500.0,0.00011122,2]
[353669143,1739986985418,-500.0,0.00011122,2]
[353669144,1739986985443,-500.0,0.00011122,2]
[353669145,1739986985467,-500.0,0.00011122,2]
[353669146,1739986985492,-500.0,0.00011122,2]
[353669147,1739986985518,-458.3354811,0.00011122,2]
[353669148,1739986985543,-500.0,0.00011122,2]
[353669149,1739986985568,-500.0,0.00011122,2]
[353669150,1739986985592,-500.0,0.00011122,2]
[353669151,1739986985617,-500.0,0.00011122,2]
[353669152,1739986985641,-500.0,0.00011122,2]
[353669153,1739986985664,-500.0,0.00011122,2]
[353669154,1739986985688,-500.0,0.00011122,2]
[353669155,1739986985714,-500.0,0.00011122,2]
[353669156,1739986985738,-500.0,0.00011122,2]
[353669157,1739986985762,-500.0,0.00011122,2]
[353669158,1739986985786,-500.0,0.00011122,2]
[353669159,1739986985810,-500.0,0.00011122,2]
[353669160,1739986985833,-500.0,0.00011122,2]
[353669161,1739986985855,-500.0,0.00011122,2]
[353669162,1739986985879,-500.0,0.00011122,2]
[353669163,1739986985906,-500.0,0.00011122,2]
[353669164,1739986985931,-500.0,0.00011122,2]
[353669165,1739986985956,-527.19862633,0.00011122,2]
[353669166,1739986985982,-500.0,0.00011122,2]
[353669167,1739986986006,-500.0,0.00011122,2]
[353669168,1739986986030,-500.0,0.00011122,2]
[353669169,1739986986054,-500.0,0.00011122,2]
[353669170,1739986986077,-500.0,0.00011122,2]
[353669171,1739986986100,-163.77964003,0.00011122,2]
[353669172,1739986986128,-500.0,0.00011122,2]
[353669173,1739986986152,-500.0,0.00011123,2]
[353669174,1739986986176,-500.0,0.00011123,2]
[353669175,1739986986200,-507.90298006,0.00011123,2]
[353669176,1739986986223,-500.0,0.00011123,2]
[353669177,1739986986246,-156.3570863,0.00011123,2]
[353669178,1739986986268,-500.0,0.00011123,2]
[353669179,1739986986291,-500.0,0.00011123,2]
[353669180,1739986986313,-500.0,0.00011123,2]
[353669181,1739986986335,-500.0,0.00011123,2]
[353669182,1739986986358,-610.32,0.00011123,2]
[353669183,1739986986382,-500.0,0.00011123,2]
[353669184,1739986986405,-500.0,0.00011123,2]
[353669185,1739986986427,-650.1,0.00011123,2]
[353669186,1739986986451,-500.0,0.00011123,2]
[353669187,1739986986475,-500.0,0.00011123,2]
[353669188,1739986986498,-500.0,0.00011123,2]
[353669189,1739986986520,-500.0,0.00011123,2]
[353669190,1739986986543,-675.1,0.00011123,2]
[353669191,1739986986565,-500.0,0.00011123,2]
[353669192,1739986986587,-500.0,0.00011123,2]
[353669193,1739986986609,-572.6,0.00011123,2]
[353669194,1739986986632,-722.17,0.00011123,2]
[353669195,1739986986655,-500.0,0.00011123,2]
[353669196,1739986986677,-500.0,0.00011123,2]
[353669197,1739986986700,-500.0,0.00011123,2]
[353669198,1739986986725,-651.53,0.00011123,2]
[353669199,1739986986747,-500.0,0.00011123,2]
[353669200,1739986986770,-830.63,0.00011123,2]
[353669201,1739986986799,-500.0,0.00011123,2]
[353669202,1739986986822,-548.03,0.00011123,2]
[353669203,1739986986845,-624.44,0.00011123,2]
[353669204,1739986986867,-500.0,0.00011123,2]
[353669205,1739986986890,-586.77,0.00011123,2]
[353669206,1739986986913,-500.0,0.00011123,2]
[353669207,1739986986936,-500.0,0.00011123,2]
[353669208,1739986986959,-593.92,0.00011123,2]
[353669209,1739986986982,-500.0,0.00011123,2]
[353669210,1739986987005,-500.0,0.00011123,2]
[353669211,1739986987028,-500.0,0.00011123,2]
[353669212,1739986987050,-500.0,0.00011123,2]
[353669213,1739986987077,-500.0,0.00011123,2]
[353669214,1739986987101,-452.47908985,0.00011123,2]
[353669215,1739986987129,-502.95,0.00011123,2]
[353669216,1739986987154,-500.0,0.00011123,2]
[353669217,1739986987176,-500.0,0.00011123,2]
[353669218,1739986987201,-665.85,0.00011123,2]
[353669219,1739986987225,-579.79,0.00011123,2]
[353669220,1739986987248,-500.0,0.00011123,2]
[353669221,1739986987272,-601.36,0.00011123,2]
[353669222,1739986987296,-1018.2,0.00011123,2]
[353669223,1739986987321,-670.1,0.00011123,2]
[353669224,1739986987344,-500.0,0.00011123,2]
[353669225,1739986987366,-684.29,0.00011123,2]
[353669226,1739986987388,-559.06,0.00011123,2]
[353669227,1739986987424,-561.35,0.00011123,2]
[353669228,1739986987447,-500.0,0.00011123,2]
[353669229,1739986987470,-500.0,0.00011123,2]
[353669230,1739986987493,-509.07,0.00011123,2]
[353669231,1739986987515,-500.0,0.00011123,2]
[353669232,1739986987538,-500.0,0.00011123,2]
[353669233,1739986987562,-934.2,0.00011123,2]
[353669234,1739986987584,-192.94622383,0.00011123,2]
[353669235,1739986987606,-500.0,0.00011123,2]
[353669236,1739986987629,-500.0,0.00011123,2]
[353669237,1739986987655,-891.28,0.00011123,2]
[353669238,1739986987678,-500.0,0.00011123,2]
[353669239,1739986987701,-500.0,0.00011123,2]
[353669240,1739986987724,-500.0,0.00011123,2]
[353669241,1739986987748,-500.0,0.00011123,2]
[353669242,1739986987772,-500.0,0.00011123,2]
[353669243,1739986987795,-1071.39,0.00011123,2]
[353669244,1739986987816,-500.0,0.00011123,2]
[353669245,1739986987839,-500.0,0.00011123,2]
[353669246,1739986987861,-500.0,0.00011123,2]
[353669247,1739986987886,-645.5,0.00011123,2]
[353669248,1739986987909,-983.6,0.00011123,2]
[353669249,1739986987931,-500.0,0.00011123,2]
[353669250,1739986987954,-500.0,0.00011123,2]
[353669251,1739986987978,-868.71,0.00011123,2]
[353669252,1739986988005,-500.0,0.00011123,2]
[353669253,1739986988028,-502.44,0.00011123,2]
[353669254,1739986988051,-500.0,0.00011123,2]
[353669255,1739986988073,-500.0,0.00011123,2]
[353669256,1739986988096,-747.49,0.00011123,2]
[353669257,1739986988124,-500.0,0.00011123,2]
[353669258,1739986988147,-500.0,0.00011123,2]
[353669259,1739986988171,-885.83,0.00011123,2]
[353669260,1739986988197,-500.0,0.00011123,2]
[353669261,1739986988220,-984.05,0.00011123,2]
[353669262,1739986988243,-500.0,0.00011123,2]
[353669263,1739986988265,-535.48,0.00011123,2]
[353669264,1739986988288,-500.0,0.00011123,2]
[353669265,1739986988310,-500.0,0.00011123,2]
[353669266,1739986988332,-670.73,0.00011123,2]
[353669267,1739986988354,-716.96,0.00011123,2]
[353669268,1739986988378,-500.0,0.00011123,2]
[353669269,1739986988402,-500.0,0.00011123,2]
[353669270,1739986988424,-500.0,0.00011123,2]
[353669271,1739986988447,-500.0,0.00011123,2]
[353669272,1739986988469,-500.0,0.00011123,2]
[353669273,1739986988493,-639.26261521,0.00011123,2]
[353669274,1739986988798,-500.0,0.00011123,2]
[353669275,1739986988823,-603.61,0.00011123,2]
[353669276,1739986988845,-500.0,0.00011123,2]
[353669277,1739986988872,-907.67,0.00011123,2]
[353669278,1739986988896,-750.72,0.00011123,2]
[353669279,1739986988919,-797.8,0.00011123,2]
[353669280,1739986988941,-500.0,0.00011123,2]
[353669281,1739986988964,-500.0,0.00011123,2]
[353669282,1739986988986,-516.40209805,0.00011123,2]
[353669283,1739986989009,-500.0,0.00011123,2]
[353669284,1739986989033,-1706.87,0.00011123,2]
[353669285,1739986989057,-621.37,0.00011123,2]
[353669286,1739986989079,-500.0,0.00011123,2]
[353669287,1739986989103,-500.0,0.00011123,2]
[353669288,1739986989129,-500.0,0.00011123,2]
[353669289,1739986989154,-832.9,0.00011123,2]
[353669290,1739986989177,-500.0,0.00011123,2]
[353669291,1739986989202,-1707.94,0.00011123,2]
[353669292,1739986989225,-500.0,0.00011123,2]
[353669293,1739986989248,-500.0,0.00011123,2]
[353669294,1739986989272,-837.67,0.00011123,2]
[353669295,1739986989295,-561.36,0.00011123,2]
[353669296,1739986989317,-816.81,0.00011123,2]
[353669297,1739986989340,-1511.83,0.00011123,2]
[353669298,1739986989363,-500.0,0.00011123,2]
[353669299,1739986989386,-500.0,0.00011123,2]
[353669300,1739986989409,-2495.84,0.00011123,2]
[353669301,1739986989432,-744.98,0.00011123,2]
[353669302,1739986989454,-500.53,0.00011123,2]
[353669303,1739986989477,-500.0,0.00011123,2]
[353669304,1739986989500,-1354.12,0.00011123,2]
[353669305,1739986989523,-671.52,0.00011123,2]
[353669306,1739986989545,-500.0,0.00011123,2]
[353669307,1739986989568,-589.8,0.00011123,2]
[353669308,1739986989592,-1383.54,0.00011123,2]
[353669309,1739986989614,-500.0,0.00011123,2]
[353669310,1739986989637,-500.0,0.00011123,2]
[353669311,1739986989662,-500.0,0.00011123,2]
[353669312,1739986989685,-716.42,0.00011123,2]
[353669313,1739986989707,-500.0,0.00011123,2]
[353669314,1739986989730,-2477.23,0.00011123,2]
[353669315,1739986989752,-500.0,0.00011123,2]
[353669316,1739986989775,-857.39,0.00011123,2]
[353669317,1739986989798,-554.89,0.00011123,2]
[353669318,1739986989821,-2798.24,0.00011123,2]
[353669319,1739986989844,-1878.9,0.00011123,2]
[353669320,1739986989867,-500.0,0.00011123,2]
[353669321,1739986989892,-801.96,0.00011123,2]
[353669322,1739986989916,-500.0,0.00011123,2]
[353669323,1739986989939,-525.08,0.00011123,2]
[353669324,1739986989961,-740.28,0.00011123,2]
[353669325,1739986989986,-2438.11,0.00011123,2]
[353669326,1739986990010,-500.0,0.00011123,2]
[353669327,1739986990033,-1466.93,0.00011123,2]
[353669328,1739986990056,-500.0,0.00011123,2]
[353669329,1739986990078,-500.0,0.00011123,2]
[353669330,1739986990101,-1051.230903,0.00011123,2]
[353669331,1739986990128,-919.63,0.00011123,2]
[353669332,1739986990151,-2623.12,0.00011123,2]
[353669333,1739986990173,-1598.95,0.00011123,2]
[353669334,1739986990195,-634.27,0.00011123,2]
[353669335,1739986990218,-1161.17,0.00011123,2]
[353669336,1739986990241,-1158.67,0.00011123,2]
[353669337,1739986990265,-520.95,0.00011123,2]
[353669338,1739986990288,-500.0,0.00011123,2]
[353669339,1739986990312,-1063.45,0.00011123,2]
[353669340,1739986990335,-1214.87,0.00011123,2]
[353669341,1739986990358,-819.74,0.00011123,2]
[353669342,1739986990383,-500.0,0.00011123,2]
[353669343,1739986990406,-674.04,0.00011123,2]
[353669344,1739986990429,-971.03,0.00011123,2]
[353669345,1739986990452,-1812.51,0.00011123,2]
[353669346,1739986990477,-2485.02,0.00011123,2]
[353669347,1739986990502,-931.1,0.00011123,2]
[353669348,1739986990525,-500.0,0.00011123,2]
[353669349,1739986990547,-1358.04,0.00011123,2]
[353669350,1739986990570,-669.81,0.00011123,2]
[353669351,1739986990593,-500.0,0.00011123,2]
[353669352,1739986990616,-500.0,0.00011123,2]
[353669353,1739986990638,-1305.34,0.00011123,2]
[353669354,1739986990661,-1060.018779,0.00011123,2]
[353669355,1739986990684,-500.0,0.00011123,2]
[353669356,1739986990705,-500.0,0.00011123,2]
[353669357,1739986990728,-702.74,0.00011123,2]
[353669358,1739986990751,-500.0,0.00011123,2]
[353669359,1739986990775,-500.0,0.00011123,2]
[353669360,1739986990798,-839.5,0.00011123,2]
[353669361,1739986990821,-1932.99,0.00011123,2]
[353669362,1739986990844,-819.06,0.00011123,2]
[353669363,1739986990867,-500.0,0.00011123,2]
[353669364,1739986990892,-1333.44,0.00011123,2]
[353669365,1739986990915,-1280.1,0.00011123,2]
[353669366,1739986990939,-1821.57,0.00011123,2]
[353669367,1739986990963,-639.81933796,0.00011123,2]
[353669368,1739986990986,-500.0,0.00011123,2]
[353669369,1739986991009,-914.85,0.00011123,2]
[353669370,1739986991032,-560.88,0.00011123,2]
[353669371,1739986991056,-1378.48,0.00011123,2]
[353669372,1739986991080,-1471.53,0.00011123,2]
[353669373,1739986991104,-500.0,0.00011123,2]
[353669374,1739986991131,-1236.47,0.00011123,2]
[353669375,1739986991154,-2253.67,0.00011123,2]
[353669376,1739986991178,-1003.93,0.00011123,2]
[353669377,1739986991203,-1865.24,0.00011123,2]
[353669378,1739986991228,-618.28,0.00011123,2]
[353669379,1739986991266,-748.0,0.00011123,2]
[353669380,1739986991290,-1497.76,0.00011123,2]
[353669381,1739986991314,-725.12,0.00011123,2]
[353669382,1739986991338,-529.79,0.00011123,2]
[353669383,1739986991362,-2082.83,0.00011123,2]
[353669384,1739986991385,-500.0,0.00011123,2]
[353669385,1739986991408,-500.0,0.00011123,2]
[353669386,1739986991431,-500.0,0.00011123,2]
[353669387,1739986991455,-944.46,0.00011123,2]
[353669388,1739986991479,-1783.2,0.00011123,2]
[353669389,1739986991503,-2152.29,0.00011123,2]
[353669390,1739986991527,-1524.59,0.00011123,2]
[353669391,1739986991551,-681.33,0.00011123,2]
[353669392,1739986991575,-642.47,0.00011123,2]
[353669393,1739986991599,-1070.85,0.00011123,2]
[353669394,1739986991623,-500.0,0.00011123,2]
[353669395,1739986991646,-609.31,0.00011123,2]
[353669396,1739986991669,-500.0,0.00011123,2]
[353669397,1739986991693,-500.0,0.00011123,2]
[353669398,1739986991718,-1154.43,0.00011123,2]
[353669399,1739986991742,-1651.7,0.00011123,2]
[353669400,1739986991767,-1309.23,0.00011123,2]
[353669401,1739986991790,-616.66,0.00011123,2]
[353669402,1739986991814,-632.87,0.00011123,2]
[353669403,1739986991839,-500.0,0.00011123,2]
[353669404,1739986991861,-316.40091895,0.00011123,2]
[353669405,1739986991888,-1552.62,0.00011123,2]
[353669406,1739986991918,-1776.39,0.00011123,2]
[353669407,1739986991941,-500.0,0.00011123,2]
[353669408,1739986991965,-856.54,0.00011123,2]
[353669409,1739986991988,-809.31,0.00011123,2]
[353669410,1739986992011,-1842.68,0.00011123,2]
[353669411,1739986992035,-500.0,0.00011123,2]
[353669412,1739986992058,-2266.81,0.00011123,2]
[353669413,1739986992082,-500.0,0.00011123,2]
[353669414,1739986992105,-886.63,0.00011123,2]
[353669415,1739986992132,-1658.86,0.00011123,2]
[353669416,1739986992156,-1962.68,0.00011123,2]
[353669417,1739986992181,-500.0,0.00011123,2]
[353669418,1739986992209,-807.37,0.00011123,2]
[353669419,1739986992233,-806.59,0.00011123,2]
[353669420,1739986992256,-500.0,0.00011123,2]
[353669421,1739986992281,-500.0,0.00011123,2]
[353669422,1739986992304,-2002.57,0.00011123,2]
[353669423,1739986992510,-500.0,0.00011123,2]
[353669424,1739986992541,-500.0,0.00011123,2]
[353669425,1739986992566,-570.48,0.00011123,2]
[353669426,1739986992588,-1658.32,0.00011123,2]
[353669427,1739986992614,-1296.83,0.00011123,2]
[353669428,1739986992637,-1882.15,0.00011123,2]
[353669429,1739986992660,-216.3617949,0.00011123,2]
[353669430,1739986992685,-1608.39,0.00011123,2]
[353669431,1739986992709,-939.3,0.00011123,2]
[353669432,1739986992732,-857.33,0.00011123,2]
[353669433,1739986992755,-500.0,0.00011123,2]
[353669434,1739986992778,-1418.8,0.00011123,2]
[353669435,1739986992801,-500.0,0.00011123,2]
[353669436,1739986992824,-2632.01,0.00011123,2]
[353669437,1739986992847,-3867.58,0.00011123,2]
[353669438,1739986992870,-500.0,0.00011123,2]
[353669439,1739986992896,-500.0,0.00011123,2]
[353669440,1739986992920,-1411.22,0.00011123,2]
[353669441,1739986992944,-690.83,0.00011123,2]
[353669442,1739986992968,-500.0,0.00011123,2]
[353669443,1739986992992,-2069.19,0.00011123,2]
[353669444,1739986993014,-500.0,0.00011123,2]
[353669445,1739986993037,-1670.81,0.00011123,2]
[353669446,1739986993062,-769.82,0.00011123,2]
[353669447,1739986993086,-867.41,0.00011123,2]
[353669448,1739986993110,-500.0,0.00011123,2]
[353669449,1739986993137,-1765.3,0.00011123,2]
[353669450,1739986993162,-500.0,0.00011123,2]
[353669451,1739986993187,-1370.86,0.00011123,2]
[353669452,1739986993211,-500.0,0.00011123,2]
[353669453,1739986993235,-1531.76,0.00011123,2]
[353669454,1739986993259,-662.65,0.00011123,2]
[353669455,1739986993283,-633.19,0.00011123,2]
[353669456,1739986993306,-1131.87,0.00011123,2]